fUST/lending_fUST_20250512
["ID","MTS","AMOUNT","RATE_DAILY","PERIOD"]
[360773006,1747006243832,-400.0,0.00022574,2]
[360773008,1747006243841,-400.0,0.00022574,2]
[360773010,1747006243851,-400.0,0.00022574,2]
[360773012,1747006243860,-400.0,0.00022574,2]
[360773014,1747006243870,-1152.29,0.00022574,2]
[360773016,1747006243879,-400.0,0.00022574,2]
[360773018,1747006243888,-400.0,0.00022581,2]
[360773020,1747006243898,-400.0,0.00022581,2]
[360773022,1747006243907,-478.22,0.00022581,2]
[360773024,1747006243916,-400.0,0.00022582,2]
[360773026,1747006243926,-3627.18,0.00022582,2]
[360773028,1747006243935,-1222.64,0.00022582,2]
[360773030,1747006243947,-400.0,0.00022582,2]
[360773032,1747006243957,-400.0,0.00022582,2]
[360773034,1747006243966,-2546.17,0.00022582,2]
[360773036,1747006243977,-400.0,0.00022582,2]
[360773038,1747006243987,-400.0,0.00022582,2]
[360773039,1747006243996,-400.0,0.00022582,2]
[360773041,1747006244005,-400.0,0.00022582,2]
[360773043,1747006244015,-400.0,0.00022582,2]
[360773045,1747006244025,-400.0,0.00022582,2]
[360773048,1747006244036,-451.15,0.00022582,2]
[360773050,1747006244047,-710.77,0.00022584,2]
[360773051,1747006244058,-1166.66,0.00022584,2]
[360773054,1747006244067,-454.9,0.00022584,2]
[360773056,1747006244077,-400.0,0.00022584,2]
[360773058,1747006244086,-166.76,0.00022584,2]
[360773060,1747006244096,-400.0,0.00022584,2]
[360773062,1747006244105,-422.1676983,0.00022705,2]
[360773064,1747006244115,-12621.47167665,0.00022705,2]
[360773066,1747006244124,-160.0,0.00022705,2]
[360773068,1747006244135,-500.0,0.00022731,2]
[360773069,1747006244144,-573.24525868,0.00022731,2]
[360773072,1747006244154,-500.0,0.00022731,2]
[360773073,1747006244163,-500.0,0.00022731,2]
[360773076,1747006244172,-500.0,0.00022731,2]
[360773078,1747006244182,-300.0,0.00022731,2]
[360773080,1747006244192,-500.0,0.00022731,2]
[360773082,1747006244202,-500.0,0.00022731,2]
[360773083,1747006244211,-500.0,0.00022731,2]
[360773086,1747006244220,-500.0,0.00022731,2]
[360773088,1747006244231,-6200.50081733,0.00022797,7]
[360773090,1747006244240,-400.0,0.0002282,2]
[360773092,1747006244249,-400.0,0.00022848,2]
[360773094,1747006244259,-400.0,0.00022848,2]
[360773096,1747006244268,-400.0,0.00022848,2]
[360773098,1747006244277,-400.0,0.00022848,2]
[360773100,1747006244287,-400.0,0.00022848,2]
[360773102,1747006244296,-400.0,0.00022848,2]
[360773104,1747006244305,-400.0,0.00022848,2]
[360773106,1747006244316,-1152.29,0.00022848,2]
[360773108,1747006244325,-400.0,0.00022848,2]
[360773110,1747006244336,-400.0,0.00022855,2]
[360773112,1747006244346,-400.0,0.00022855,2]
[360773114,1747006244355,-545.76,0.00022856,2]
[360773116,1747006244364,-3627.18,0.00022856,2]
[360773118,1747006244374,-1222.64,0.00022856,2]
[360773120,1747006244383,-400.0,0.00022856,2]
[360773122,1747006244393,-400.0,0.00022856,2]
[360773124,1747006244402,-2546.17,0.00022856,2]
[360773126,1747006244412,-400.0,0.00022856,2]
[360773128,1747006244423,-400.0,0.00022856,2]
[360773130,1747006244432,-400.0,0.00022856,2]
[360773132,1747006244445,-400.0,0.00022856,2]
[360773134,1747006244454,-400.0,0.00022856,2]
[360773136,1747006244463,-400.0,0.00022856,2]
[360773138,1747006244472,-451.15,0.00022856,2]
[360773140,1747006244482,-710.77,0.00022858,2]
[360773142,1747006244491,-1166.66,0.00022858,2]
[360773144,1747006244500,-454.9,0.00022858,2]
[360773146,1747006244510,-241.04300967,0.00022858,2]
[360773148,1747006244519,-400.0,0.00022858,2]
[360773150,1747006244529,-400.0,0.00023094,2]
[360773152,1747006244539,-85548.79599747,0.00023111,2]
[360773174,1747006244737,-657.86,0.0002094,2]
[360773176,1747006244747,-657.86,0.00021214,2]
[360773178,1747006244756,-657.86,0.00021488,2]
[360773179,1747006244771,-160.0,0.00022705,2]
[360773182,1747006244780,-11790.92929834,0.00023111,2]
[360773358,1747006246523,-584.9250075,0.000192,2]
[360773360,1747006246536,-1415.0749925,0.000192,2]
[360773362,1747006246546,-657.86,0.00021762,2]
[360773364,1747006246556,-7822.14651215,0.00023111,2]
[360773788,1747007138107,-178.47505249,0.00017058,2]
[360773789,1747007229080,-71.52494751,0.00017058,2]
[360773790,1747007229103,-264.25388741,0.00017478,2]
[360773791,1747007236133,-35.74611259,0.00017478,2]
[360773792,1747007236155,-614.5469505,0.00017479,2]
[360773793,1747007236179,-500.0,0.00017479,2]
[360773794,1747007236200,-158.75003217,0.00017479,2]
[360773795,1747007236221,-500.0,0.00017479,2]
[360773796,1747007236245,-500.0,0.00017479,2]
[360773797,1747007236266,-500.0,0.00017479,2]
[360773798,1747007236288,-318.06967163,0.00017479,2]
[360773799,1747007236319,-500.0,0.00017479,2]
[360773800,1747007236341,-395.07049779,0.00017479,2]
[360773801,1747007236364,-500.0,0.00017479,2]
[360773802,1747007236384,-203.62182266,0.00017479,2]
[360773803,1747007236405,-559.49413587,0.00017479,2]
[360773804,1747007236433,-500.0,0.00017479,2]
[360773805,1747007236455,-500.0,0.00017479,2]
[360773806,1747007236486,-500.0,0.00017479,2]
[360773807,1747007236509,-500.0,0.00017479,2]
[360773808,1747007236531,-500.0,0.00017479,2]
[360773809,1747007236560,-219.28849688,0.00017479,2]
[360773810,1747007236588,-500.0,0.00017479,2]
[360773811,1747007236612,-300.0,0.0001748,2]
[360773812,1747007236633,-300.0,0.0001748,2]
[360773813,1747007236655,-282.89165901,0.0001748,2]
[360773815,1747007252080,-917.10834099,0.0001748,2]
[360773816,1747007252102,-300.0,0.0001748,2]
[360773817,1747007252125,-144.01717105,0.00017482,2]
[360773821,1747007286129,2500.0,0.00022,120]
[360773822,1747007296889,2500.0,0.00014,30]
[360773825,1747007348117,-313.1188524,0.00017482,2]
[360773826,1747007348149,-246.58761077,0.00017482,2]
[360773827,1747007348171,-4868.3135937,0.00017483,2]
[360773828,1747007348194,-300.0,0.00017999,2]
[360773829,1747007348215,-4542.0,0.00018,2]
[360773830,1747007348236,-151.0,0.00018088,2]
[360773831,1747007348257,-205.00902747,0.00018098,2]
[360773832,1747007348278,-177.82238435,0.00018098,2]
[360773833,1747007348299,-14720.2892638,0.00018099,2]
[360773834,1747007348320,-1738.3557542,0.00018179,2]
[360773860,1747007432747,-635.33648815,0.00018899,2]
[360773871,1747007432858,-37.30875943,0.00018899,2]
[360773874,1747007432870,-334.49024791,0.00018899,2]
[360773876,1747007432880,-1665.50975209,0.000189,2]
[360774421,1747007438712,-19.83056139,0.000189,2]
[360774424,1747007438725,-308.69748497,0.000189,2]
[360774425,1747007438735,-714.0030482,0.00018992,2]
[360774428,1747007438747,-485.9969518,0.00018992,2]
[360774430,1747007438758,-160.0,0.00018992,2]
[360774432,1747007438768,-261.71349577,0.00018993,2]
[360774434,1747007438781,-10458.99882407,0.00018993,2]
[360774436,1747007438796,-1892.46644793,0.00018993,2]
[360774438,1747007438806,-422.1676983,0.00018993,2]
[360774440,1747007438816,-160.0,0.00018993,2]
[360774442,1747007438825,-2753.09122933,0.00018993,2]
[360774694,1747007441057,-3885.7460019,0.00018993,2]
[360774696,1747007441066,-997.71092301,0.00019074,2]
[360774698,1747007441076,-160.0,0.00019074,2]
[360774700,1747007441085,-500.0,0.00019124,2]
[360774702,1747007441095,-500.0,0.00019172,2]
[360774704,1747007441104,-500.0,0.00019173,2]
[360774706,1747007441114,-400.0,0.00019178,2]
[360774708,1747007441124,-400.0,0.00019178,2]
[360774710,1747007441134,-400.0,0.00019178,2]
[360774712,1747007441144,-400.0,0.00019178,2]
[360774714,1747007441154,-400.0,0.00019178,2]
[360774716,1747007441163,-400.0,0.00019178,2]
[360774718,1747007441173,-400.0,0.00019178,2]
[360774719,1747007441183,-504.32465404,0.00019178,2]
[360774721,1747007441193,-208.01283144,0.00019178,2]
[360774723,1747007441202,-400.0,0.00019178,2]
[360774724,1747007441212,-503.96144838,0.00019178,2]
[360774725,1747007441222,-400.0,0.00019178,2]
[360774726,1747007441232,-400.0,0.00019178,2]
[360774727,1747007441242,-400.0,0.00019178,2]
[360774728,1747007441251,-401.22516961,0.00019178,2]
[360774729,1747007441261,-400.0,0.00019178,2]
[360774730,1747007441271,-400.0,0.00019178,2]
[360774731,1747007441280,-400.0,0.00019178,2]
[360774732,1747007441290,-400.0,0.00019178,2]
[360774733,1747007441300,-400.0,0.00019178,2]
[360774734,1747007441309,-473.84,0.00019178,2]
[360774735,1747007441319,-2418.12,0.00019178,2]
[360774736,1747007441328,-877.14,0.00019178,2]
[360774737,1747007441337,-400.0,0.00019178,2]
[360774738,1747007441347,-400.0,0.00019178,2]
[360774739,1747007441356,-174.04,0.00019178,2]
[360774740,1747007441365,-400.0,0.00019178,2]
[360774741,1747007441374,-400.0,0.00019178,2]
[360774742,1747007441383,-777.77,0.00019178,2]
[360774743,1747007441392,-856.65006338,0.00019178,2]
[360774744,1747007441405,-840.79993662,0.00019178,2]
[360774746,1747007441414,-6.70663219,0.00019178,2]
[360774750,1747007441445,-123.43187573,0.00019178,2]
[360775026,1747007444015,-99.75106774,0.00019178,2]
[360775290,1747007446724,-170.11042434,0.00019178,2]
[360775292,1747007446734,-180.72351325,0.00019178,2]
[360775294,1747007446743,-358.32915733,0.00019178,2]
[360775314,1747007446943,-41.67084267,0.00019178,2]
[360775316,1747007446952,-109.56532533,0.00019178,2]
[360775319,1747007446968,-95.14394241,0.00019178,2]
[360775321,1747007446978,-404.12578191,0.00019178,2]
[360775323,1747007446987,-400.0,0.00019178,2]
[360775325,1747007446997,-400.0,0.00019178,2]
[360775327,1747007447006,-237.57541324,0.00019178,2]
[360775963,1747007483474,500.0,0.00017482,2]
[360775964,1747007483507,500.0,0.00017482,2]
[360775965,1747007483544,500.0,0.00017482,2]
[360775966,1747007483786,500.0,0.00017482,2]
[360775967,1747007483815,339.48126667,0.00017482,2]
[360775968,1747007483845,500.0,0.00017482,2]
[360775969,1747007483897,500.0,0.00017482,2]
[360775970,1747007483944,500.0,0.00017482,2]
[360775971,1747007484060,500.0,0.00017482,2]
[360775973,1747007506142,194.70849362,0.00018082,3]
[360775976,1747007841758,809.74148522,0.00022,120]
[360775980,1747008045823,166.62156,0.00018211,120]
[360775986,1747008349209,-189.52029391,0.00013562,2]
[360775987,1747008349232,-348.61879,0.00013699,2]
[360775988,1747008349254,-250.0,0.00016311,2]
[360775989,1747008349279,-166.62156,0.00018211,2]
[360775990,1747008349301,-160.0,0.00018871,2]
[360775991,1747008349324,-856.23052063,0.00018871,2]
[360775992,1747008349346,-151.0,0.00018883,2]
[360775993,1747008349369,-235.99462386,0.00018892,2]
[360775994,1747008436108,-300.0,0.00018891,2]
[360775995,1747008436133,-500.0,0.00018891,2]
[360775996,1747008436158,-500.0,0.00018891,2]
[360775997,1747008436198,-500.0,0.00018891,2]
[360775998,1747008436224,-517.90301317,0.00018891,2]
[360775999,1747008436253,-500.0,0.00018891,2]
[360776000,1747008436289,-500.0,0.00018891,2]
[360776001,1747008436314,-500.0,0.00018891,2]
[360776002,1747008436351,-250.0,0.00018891,2]
[360776003,1747008436376,-467.6167825,0.00018891,2]
[360776004,1747008436412,-500.0,0.00018891,2]
[360776005,1747008436447,-500.0,0.00018891,2]
[360776006,1747008436468,-64.00537614,0.00018892,2]
[360776007,1747008436489,-41.40137615,0.00018892,2]
[360776009,1747008550083,-638.07071503,0.00018356,2]
[360776010,1747008550106,-638.07071503,0.00018831,2]
[360776011,1747008550128,-258.59862385,0.00018892,2]
[360776012,1747008550151,-1200.0,0.00018899,2]
[360776013,1747008550187,-293.64318526,0.00018987,2]
[360776014,1747008550212,-300.0,0.00019099,2]
[360776015,1747008550240,-218.62408694,0.00019099,2]
[360776016,1747008550275,-250.0,0.00019099,2]
[360776017,1747008550298,-1000.0,0.000191,2]
[360776018,1747008550322,-638.07071503,0.00019166,2]
[360776019,1747008550345,-300.0,0.00019176,2]
[360776020,1747008550367,-300.0,0.00019177,2]
[360776021,1747008550391,-318.50909383,0.00019177,2]
[360776022,1747008550414,-485.55226523,0.00019177,2]
[360776023,1747008550439,-160.0,0.00019177,2]
[360776024,1747008550461,-997.71092301,0.00019177,2]
[360776025,1747008550483,-1685.45144695,0.00019177,2]
[360776026,1747008562113,-10936.0202297,0.00019177,2]
[360776027,1747008562136,-422.1676983,0.00019177,2]
[360776028,1747008562161,-400.57370725,0.00019178,2]
[360776029,1747008562187,-400.0,0.00019178,2]
[360776030,1747008562212,-401.311796,0.00019178,2]
[360776031,1747008562239,-400.0,0.00019178,2]
[360776032,1747008562263,-403.79101244,0.00019178,2]
[360776033,1747008562294,-400.0,0.00019178,2]
[360776034,1747008562320,-400.0,0.00019178,2]
[360776035,1747008562344,-400.0,0.00019178,2]
[360776036,1747008562369,-400.0,0.00019178,2]
[360776037,1747008562394,-400.0,0.00019178,2]
[360776038,1747008562419,-402.66919914,0.00019178,2]
[360776039,1747008562445,-400.0,0.00019178,2]
[360776040,1747008562469,-400.0,0.00019178,2]
[360776041,1747008562493,-400.0,0.00019178,2]
[360776042,1747008562518,-400.0,0.00019178,2]
[360776043,1747008562543,-400.0,0.00019178,2]
[360776044,1747008562567,-496.59306732,0.00019178,2]
[360776045,1747008562591,-525.46364915,0.00019178,2]
[360776046,1747008562614,-501.17702518,0.00019178,2]
[360776047,1747008562638,-402.27229783,0.00019178,2]
[360776048,1747008562661,-400.0,0.00019178,2]
[360776049,1747008562684,-402.82879292,0.00019178,2]
[360776050,1747008562708,-402.60581353,0.00019178,2]
[360776051,1747008562731,-400.0,0.00019178,2]
[360776052,1747008562755,-400.0,0.00019178,2]
[360776053,1747008562777,-155.22584658,0.00019178,2]
[360776054,1747008562801,-400.0,0.00019178,2]
[360776055,1747008562824,-400.0,0.00019178,2]
[360776056,1747008562852,-200.0,0.00019178,2]
[360776057,1747008562875,-308.24882822,0.00019178,2]
[360776058,1747008562901,-400.0,0.00019178,2]
[360776059,1747008562925,-400.00436775,0.00019178,2]
[360776060,1747008562952,-300.34978164,0.00019178,2]
[360776061,1747008565089,-99.65021836,0.00019178,2]
[360776062,1747008565111,-400.0,0.00019178,2]
[360776063,1747008565133,-468.02378816,0.00019178,2]
[360776064,1747008565153,-400.0,0.00019178,2]
[360776065,1747008565173,-400.0,0.00019178,2]
[360776066,1747008565199,-400.0,0.00019178,2]
[360776067,1747008565221,-400.0,0.00019178,2]
[360776068,1747008565249,-400.0,0.00019178,2]
[360776069,1747008565272,-400.0,0.00019178,2]
[360776070,1747008565293,-400.0,0.00019178,2]
[360776071,1747008565316,-400.0,0.00019178,2]
[360776072,1747008565337,-501.67255527,0.00019178,2]
[360776073,1747008565359,-400.0,0.00019178,2]
[360776074,1747008565381,-400.0,0.00019178,2]
[360776075,1747008565403,-402.70237286,0.00019178,2]
[360776076,1747008565424,-400.0,0.00019178,2]
[360776077,1747008565449,-400.0,0.00019178,2]
[360776078,1747008565470,-400.0,0.00019178,2]
[360776079,1747008565491,-400.0,0.00019178,2]
[360776080,1747008565513,-400.0,0.00019178,2]
[360776081,1747008565534,-444.37,0.00019178,2]
[360776082,1747008565555,-501.30439946,0.00019178,2]
[360776083,1747008565577,-295.87,0.00019178,2]
[360776084,1747008565598,-400.0,0.00019178,2]
[360776085,1747008565619,-456.09,0.00019178,2]
[360776086,1747008565639,-400.0,0.00019178,2]
[360776087,1747008565660,-401.54678134,0.00019178,2]
[360776088,1747008565683,-400.0,0.00019178,2]
[360776089,1747008565711,-400.0,0.00019178,2]
[360776090,1747008565734,-400.0,0.00019178,2]
[360776091,1747008565756,-400.0,0.00019178,2]
[360776092,1747008565776,-400.0,0.00019178,2]
[360776093,1747008565798,-400.0,0.00019178,2]
[360776094,1747008565821,-400.0,0.00019178,2]
[360776095,1747008565842,-400.0,0.00019178,2]
[360776096,1747008565863,-406.72809058,0.00019178,2]
[360776097,1747008565884,-415.82494353,0.00019178,2]
[360776098,1747008565905,-400.0,0.00019178,2]
[360776099,1747008565925,-400.0,0.00019178,2]
[360776100,1747008565952,-400.0,0.00019178,2]
[360776101,1747008565973,-400.0,0.00019178,2]
[360776102,1747008565993,-400.0,0.00019178,2]
[360776103,1747008566013,-400.0,0.00019178,2]
[360776104,1747008566034,-258.32345048,0.00019178,2]
[360776105,1747008573085,-141.67654952,0.00019178,2]
[360776106,1747008573107,-454.1,0.00019178,2]
[360776107,1747008573129,-402.1496638,0.00019178,2]
[360776108,1747008573149,-402.53894027,0.00019178,2]
[360776109,1747008573170,-400.0,0.00019178,2]
[360776110,1747008573191,-326.13,0.00019178,2]
[360776111,1747008573217,-400.0,0.00019178,2]
[360776112,1747008573241,-400.0,0.00019178,2]
[360776113,1747008573269,-240.83,0.00019178,2]
[360776114,1747008573292,-400.0,0.00019178,2]
[360776115,1747008573314,-400.0,0.00019178,2]
[360776116,1747008573337,-400.0,0.00019178,2]
[360776117,1747008573357,-400.0,0.00019178,2]
[360776118,1747008573379,-400.0,0.00019178,2]
[360776119,1747008573401,-400.0,0.00019178,2]
[360776120,1747008573422,-400.0,0.00019178,2]
[360776121,1747008573444,-400.0,0.00019178,2]
[360776122,1747008573469,-840.59,0.00019178,2]
[360776123,1747008573490,-400.0,0.00019178,2]
[360776124,1747008573511,-400.0,0.00019178,2]
[360776125,1747008573533,-400.0,0.00019178,2]
[360776126,1747008573553,-400.0,0.00019178,2]
[360776127,1747008573573,-400.0,0.00019178,2]
[360776128,1747008573595,-400.0,0.00019178,2]
[360776129,1747008573617,-232.04,0.00019178,2]
[360776130,1747008573637,-400.0,0.00019178,2]
[360776131,1747008573658,-400.0,0.00019178,2]
[360776132,1747008573678,-400.0,0.00019178,2]
[360776133,1747008573698,-400.0,0.00019178,2]
[360776134,1747008573723,-2317.37,0.00019178,2]
[360776135,1747008573744,-400.0,0.00019178,2]
[360776136,1747008573765,-2217.32,0.00019178,2]
[360776137,1747008573785,-402.66886466,0.00019178,2]
[360776138,1747008573806,-400.0,0.00019178,2]
[360776139,1747008573828,-301.9125032,0.00019178,2]
[360776140,1747008573849,-400.0,0.00019178,2]
[360776141,1747008573870,-154.78637453,0.00019178,2]
[360776149,1747008625529,370.479956,0.00013699,2]
[360776176,1747008631931,-300.0,0.00019177,2]
[360776177,1747008631941,-247.96642624,0.00019178,2]
[360776179,1747008631951,-409.2933375,0.00019178,2]
[360776181,1747008631960,-505.6826506,0.00019178,2]
[360776182,1747008631970,-400.0,0.00019178,2]
[360776183,1747008631983,-400.0,0.00019178,2]
[360776184,1747008631993,-413.11324403,0.00019178,2]
[360776185,1747008632004,-400.0,0.00019178,2]
[360776186,1747008632013,-193.5,0.00019178,2]
[360776187,1747008632023,-273.20431788,0.00019178,2]
[360776188,1747008632032,-400.0,0.00019178,2]
[360776189,1747008632042,-400.0,0.00019178,2]
[360776190,1747008632052,-400.0,0.00019178,2]
[360776191,1747008632062,-400.0,0.00019178,2]
[360776192,1747008632072,-309.14728528,0.00019178,2]
[360776193,1747008632082,-400.0,0.00019178,2]
[360776194,1747008632092,-400.0,0.00019178,2]
[360776195,1747008632102,-400.0,0.00019178,2]
[360776196,1747008632112,-1626.72,0.00019178,2]
[360776197,1747008632122,-445.44778477,0.00019178,2]
[360776198,1747008632131,-745.36,0.00019178,2]
[360776199,1747008632141,-400.0,0.00019178,2]
[360776200,1747008632151,-400.0,0.00019178,2]
[360776201,1747008632161,-400.0,0.00019178,2]
[360776202,1747008632171,-400.0,0.00019178,2]
[360776203,1747008632181,-400.0,0.00019178,2]
[360776204,1747008632191,-400.0,0.00019178,2]
[360776205,1747008632203,-400.0,0.00019178,2]
[360776206,1747008632212,-413.81766193,0.00019178,2]
[360776207,1747008632223,-400.0,0.00019178,2]
[360776208,1747008632233,-400.0,0.00019178,2]
[360776209,1747008632243,-400.0,0.00019178,2]
[360776210,1747008632255,-400.0,0.00019178,2]
[360776211,1747008632267,-400.0,0.00019178,2]
[360776212,1747008632277,-400.0,0.00019178,2]
[360776213,1747008632287,-400.0,0.00019178,2]
[360776214,1747008632298,-400.0,0.00019178,2]
[360776215,1747008632308,-403.18260697,0.00019178,2]
[360776216,1747008632318,-400.0,0.00019178,2]
[360776217,1747008632328,-402.38972112,0.00019178,2]
[360776218,1747008632341,-400.0,0.00019178,2]
[360776219,1747008632351,-500.0,0.00019178,2]
[360776220,1747008632362,-400.0,0.00019178,2]
[360776221,1747008632372,-400.0,0.00019178,2]
[360776222,1747008632383,-400.0,0.00019178,2]
[360776223,1747008632392,-413.64323504,0.00019178,2]
[360776224,1747008632402,-400.0,0.00019178,2]
[360776225,1747008632411,-400.0,0.00019178,2]
[360776226,1747008632422,-400.0,0.00019178,2]
[360776227,1747008632432,-417.99448071,0.00019178,2]
[360776228,1747008632441,-400.0,0.00019178,2]
[360776229,1747008632450,-400.0,0.00019178,2]
[360776230,1747008632460,-400.0,0.00019178,2]
[360776231,1747008632470,-400.0,0.00019178,2]
[360776232,1747008632479,-211.43298111,0.00019178,2]
[360776233,1747008632489,-400.0,0.00019178,2]
[360776234,1747008632500,-400.0,0.00019178,2]
[360776235,1747008632509,-1008.25,0.00019178,2]
[360776236,1747008632519,-404.10905592,0.00019178,2]
[360776237,1747008632528,-400.0,0.00019178,2]
[360776238,1747008632538,-232.47195249,0.00019178,2]
[360776239,1747008632547,-400.0,0.00019178,2]
[360776240,1747008632556,-200.0,0.00019178,2]
[360776241,1747008632566,-400.0,0.00019178,2]
[360776242,1747008632575,-400.0,0.00019178,2]
[360776243,1747008632585,-175.35,0.00019178,2]
[360776244,1747008632595,-400.0,0.00019178,2]
[360776245,1747008632606,-400.0,0.00019178,2]
[360776246,1747008632615,-400.0,0.00019178,2]
[360776247,1747008632624,-178.41458676,0.00019178,2]
[360776248,1747008632634,-400.0,0.00019178,2]
[360776249,1747008632644,-400.0,0.00019178,2]
[360776250,1747008632654,-516.27089739,0.00019178,2]
[360776251,1747008632664,-400.0,0.00019178,2]
[360776252,1747008632673,-400.0,0.00019178,2]
[360776253,1747008632682,-400.0,0.00019178,2]
[360776254,1747008632692,-400.0,0.00019178,2]
[360776255,1747008632701,-400.0,0.00019178,2]
[360776256,1747008632710,-403.60232207,0.00019178,2]
[360776257,1747008632719,-2220.81,0.00019178,2]
[360776258,1747008632729,-400.0,0.00019178,2]
[360776259,1747008632739,-1318.54,0.00019178,2]
[360776260,1747008632754,-380.913942,0.00019178,2]
[360776261,1747008632768,-166.0,0.00019178,2]
[360776262,1747008632778,-300.0,0.0001918,2]
[360776263,1747008632787,-160.0,0.00019203,2]
[360776264,1747008632797,-160.0,0.00019205,2]
[360776265,1747008632807,-160.0,0.00019205,2]
[360776266,1747008632816,-875.21613604,0.00019352,3]
[360776267,1747008632830,-122.49478697,0.00019352,3]
[360776268,1747008632840,-5094.90327909,0.00019352,3]
[360776269,1747008632852,-3434.68786572,0.00019352,3]
[360776278,1747008637869,-192.0,0.00019177,2]
[360776279,1747008637879,-1600.7123326,0.00019352,3]
[360776283,1747008638606,-2491.16819924,0.00019352,3]
[360776284,1747008638617,-212.1539542,0.00019352,3]
[360776285,1747008638627,-1204.41103089,0.00019352,2]
[360776286,1747008638637,-4052.66907686,0.00019452,2]
[360776287,1747008638650,-1161.22504307,0.00019452,2]
[360776288,1747008638660,-244.62846713,0.00019452,2]
[360776289,1747008638670,-400.0,0.00019452,2]
[360776290,1747008638680,-400.0,0.00019452,2]
[360776291,1747008638689,-400.0,0.00019452,2]
[360776292,1747008638703,-400.0,0.00019452,2]
[360776293,1747008638712,-400.0,0.00019452,2]
[360776294,1747008638722,-309.89063897,0.00019452,2]
[360776295,1747008638731,-400.0,0.00019452,2]
[360776296,1747008638741,-400.0,0.00019452,2]
[360776297,1747008638752,-400.0,0.00019452,2]
[360776298,1747008638762,-400.0,0.00019452,2]
[360776299,1747008638771,-400.0,0.00019452,2]
[360776300,1747008638781,-400.0,0.00019452,2]
[360776301,1747008638790,-400.0,0.00019452,2]
[360776302,1747008638800,-400.0,0.00019452,2]
[360776303,1747008638810,-400.0,0.00019452,2]
[360776304,1747008638819,-400.0,0.00019452,2]
[360776305,1747008638829,-400.0,0.00019452,2]
[360776306,1747008638838,-456.09,0.00019452,2]
[360776307,1747008638848,-400.0,0.00019452,2]
[360776308,1747008638857,-485.14,0.00019452,2]
[360776309,1747008638866,-403.26516946,0.00019452,2]
[360776310,1747008638876,-400.0,0.00019452,2]
[360776311,1747008638885,-400.0,0.00019452,2]
[360776312,1747008638894,-322.87218082,0.00019452,2]
[360776313,1747008638904,-400.0,0.00019452,2]
[360776314,1747008638913,-299.19306426,0.00019452,2]
[360776315,1747008638922,-308.48559122,0.00019452,2]
[360776316,1747008638931,-400.0,0.00019452,2]
[360776317,1747008638941,-400.0,0.00019452,2]
[360776318,1747008638950,-454.1,0.00019452,2]
[360776319,1747008638959,-400.0,0.00019452,2]
[360776320,1747008638969,-400.0,0.00019452,2]
[360776321,1747008638978,-400.0,0.00019452,2]
[360776322,1747008638988,-400.0,0.00019452,2]
[360776323,1747008638997,-840.59,0.00019452,2]
[360776324,1747008639007,-400.0,0.00019452,2]
[360776325,1747008639016,-400.0,0.00019452,2]
[360776326,1747008639026,-400.0,0.00019452,2]
[360776327,1747008639036,-503.28651076,0.00019452,2]
[360776328,1747008639045,-328.02084634,0.00019452,2]
[360776329,1747008639055,-405.48,0.00019452,2]
[360776330,1747008639064,-400.0,0.00019452,2]
[360776331,1747008639074,-400.0,0.00019452,2]